[Event "Titled Tuesday Blitz September 27 Early 2022"]
[White "Kislov, Oleg"]
[Black "Koellner, Ruben Gideon"]
[WhiteFideId "13503774"]
[BlackFideId "12993093"]
[WhiteElo "2185"]
[BlackElo "2286"]
[Result "1-0"]
[Round "03"]
[TimeControl "180+1"]
[Date "2022.09.27"]
[WhiteClock "0:00:23"]
[BlackClock "0:00:01"]

1. e4 {[%clk 0:02:54]}  d6 {[%clk 0:02:59]} 2. d4 {[%clk 0:02:54]}  Nf6 {[%clk 0:02:59]} 3. Nc3 {[%clk 0:02:54]}  e5 {[%clk 0:03:00]} 4. Nf3 {[%clk 0:02:52]}  Nbd7 {[%clk 0:03:00]} 5. Bc4 {[%clk 0:02:49]}  Be7 {[%clk 0:03:00]} 6. Ng5 {[%clk 0:02:46]}  O-O {[%clk 0:03:00]} 7. Bxf7+ {[%clk 0:02:47]}  Rxf7 {[%clk 0:03:01]} 8. Ne6 {[%clk 0:02:47]}  Qe8 {[%clk 0:03:01]} 9. Nxc7 {[%clk 0:02:47]}  Qd8 {[%clk 0:03:02]} 10. Nxa8 {[%clk 0:02:48]}  b5 {[%clk 0:03:03]} 11. dxe5 {[%clk 0:02:47]}  Nxe5 {[%clk 0:03:02]} 12. Nd5 {[%clk 0:02:46]}  Nxd5 {[%clk 0:01:53]} 13. Qxd5 {[%clk 0:02:43]}  Bf8 {[%clk 0:01:49]} 14. Be3 {[%clk 0:02:34]}  Bb7 {[%clk 0:01:47]} 15. Qxb5 {[%clk 0:02:33]}  Bxe4 {[%clk 0:01:41]} 16. O-O-O {[%clk 0:02:28]}  Qxa8 {[%clk 0:01:37]} 17. f3 {[%clk 0:02:26]}  Bc6 {[%clk 0:01:36]} 18. Qb3 {[%clk 0:02:24]}  a5 {[%clk 0:01:32]} 19. a4 {[%clk 0:02:06]}  Kh8 {[%clk 0:01:25]} 20. f4 {[%clk 0:01:44]}  Rb7 {[%clk 0:01:13]} 21. Qc3 {[%clk 0:01:44]}  Bxg2 {[%clk 0:00:28]} 22. fxe5 {[%clk 0:01:21]}  Bxh1 {[%clk 0:00:28]} 23. Rxh1 {[%clk 0:01:21]}  Rc7 {[%clk 0:00:26]} 24. Qxc7 {[%clk 0:01:17]}  Qxh1+ {[%clk 0:00:26]} 25. Kd2 {[%clk 0:01:18]}  Qxh2+ {[%clk 0:00:26]} 26. Kd3 {[%clk 0:01:17]}  Qxe5 {[%clk 0:00:25]} 27. Bd4 {[%clk 0:01:11]}  Qf5+ {[%clk 0:00:22]} 28. Kc3 {[%clk 0:01:06]}  h5 {[%clk 0:00:19]} 29. Qb8 {[%clk 0:00:42]}  h4 {[%clk 0:00:15]} 30. Qb5 {[%clk 0:00:38]}  Qf3+ {[%clk 0:00:10]} 31. Kd2 {[%clk 0:00:38]}  h3 {[%clk 0:00:07]} 32. Qg5 {[%clk 0:00:36]}  Kg8 {[%clk 0:00:02]} 33. Qh4 {[%clk 0:00:34]}  Qg2+ {[%clk 0:00:01]} 34. Bf2 {[%clk 0:00:26]}  h2 {[%clk 0:00:02]} 35. Qc4+ {[%clk 0:00:26]}  d5 {[%clk 0:00:01]} 36. Qh4 {[%clk 0:00:23]} 1-0


[Site "https://www.chess.com"]

[Event "Titled Tuesday Blitz September 27 Early 2022"]
[White "Korchmar, Vasiliy"]
[Black "Sukandar, Irine Kharisma"]
[WhiteFideId "24131750"]
[BlackFideId "7101937"]
[WhiteElo "2370"]
[BlackElo "2284"]
[Result "0-1"]
[Round "03"]
[TimeControl "180+1"]
[Date "2022.09.27"]
[WhiteClock "0:00:50"]
[BlackClock "0:00:10"]

1. e4 {[%clk 0:03:00]}  e5 {[%clk 0:02:59]} 2. Nf3 {[%clk 0:03:00]}  Nc6 {[%clk 0:02:59]} 3. Nc3 {[%clk 0:03:00]}  Nf6 {[%clk 0:02:57]} 4. h3 {[%clk 0:03:01]}  Bb4 {[%clk 0:02:54]} 5. Nd5 {[%clk 0:02:59]}  Bc5 {[%clk 0:02:54]} 6. c3 {[%clk 0:02:57]}  O-O {[%clk 0:02:42]} 7. d4 {[%clk 0:02:44]}  exd4 {[%clk 0:02:38]} 8. cxd4 {[%clk 0:02:44]}  Nxd5 {[%clk 0:02:27]} 9. dxc5 {[%clk 0:02:44]}  Nf6 {[%clk 0:02:22]} 10. Bd3 {[%clk 0:02:42]}  Qe7 {[%clk 0:02:21]} 11. Bg5 {[%clk 0:02:35]}  h6 {[%clk 0:02:19]} 12. Bh4 {[%clk 0:02:34]}  g5 {[%clk 0:02:13]} 13. Bg3 {[%clk 0:02:34]}  Nxe4 {[%clk 0:02:12]} 14. O-O {[%clk 0:02:34]}  Nxg3 {[%clk 0:02:12]} 15. fxg3 {[%clk 0:02:35]}  Qxc5+ {[%clk 0:02:12]} 16. Kh2 {[%clk 0:02:36]}  d5 {[%clk 0:01:57]} 17. Rc1 {[%clk 0:02:35]}  Qd6 {[%clk 0:01:57]} 18. Qd2 {[%clk 0:02:34]}  f5 {[%clk 0:01:42]} 19. Nxg5 {[%clk 0:02:30]}  Rf6 {[%clk 0:01:10]} 20. Nf3 {[%clk 0:02:18]}  Bd7 {[%clk 0:01:09]} 21. Nh4 {[%clk 0:02:17]}  Raf8 {[%clk 0:01:08]} 22. Rf4 {[%clk 0:02:10]}  Ne7 {[%clk 0:00:59]} 23. Rcf1 {[%clk 0:02:07]}  c5 {[%clk 0:00:51]} 24. Kh1 {[%clk 0:01:51]}  b5 {[%clk 0:00:47]} 25. Bb1 {[%clk 0:01:46]}  d4 {[%clk 0:00:46]} 26. Qf2 {[%clk 0:01:43]}  Nd5 {[%clk 0:00:44]} 27. Rf3 {[%clk 0:01:41]}  Ne3 {[%clk 0:00:30]} 28. Rxe3 {[%clk 0:01:41]}  dxe3 {[%clk 0:00:30]} 29. Qxe3 {[%clk 0:01:42]}  Qd4 {[%clk 0:00:23]} 30. Qe7 {[%clk 0:01:35]}  Re6 {[%clk 0:00:19]} 31. Qxf8+ {[%clk 0:01:04]}  Kxf8 {[%clk 0:00:19]} 32. Nxf5 {[%clk 0:01:05]}  Rf6 {[%clk 0:00:18]} 33. g4 {[%clk 0:01:00]}  Bxf5 {[%clk 0:00:18]} 34. Bxf5 {[%clk 0:01:01]}  h5 {[%clk 0:00:16]} 35. g5 {[%clk 0:01:01]}  Rxf5 {[%clk 0:00:13]} 36. Rxf5+ {[%clk 0:01:02]}  Kg7 {[%clk 0:00:13]} 37. b3 {[%clk 0:01:02]}  h4 {[%clk 0:00:11]} 38. Kh2 {[%clk 0:01:01]}  Qd6+ {[%clk 0:00:11]} 39. Kh1 {[%clk 0:01:01]}  Qd1+ {[%clk 0:00:11]} 40. Kh2 {[%clk 0:01:02]}  Qc2 {[%clk 0:00:11]} 41. Rd5 {[%clk 0:00:59]}  c4 {[%clk 0:00:11]} 42. Rxb5 {[%clk 0:00:57]}  c3 {[%clk 0:00:11]} 43. Rc5 {[%clk 0:00:55]}  Qe2 {[%clk 0:00:10]} 44. Rxc3 {[%clk 0:00:50]}  Qe5+ {[%clk 0:00:10]} 0-1


[Site "https://www.chess.com"]

[Event "Titled Tuesday Blitz September 27 Early 2022"]
[White "Korelskiy, Egor"]
[Black "Mickiewicz, Piotr"]
[WhiteFideId "34329064"]
[BlackFideId "1114891"]
[WhiteElo "2071"]
[BlackElo "2246"]
[Result "1-0"]
[Round "03"]
[TimeControl "180+1"]
[Date "2022.09.27"]
[WhiteClock "0:00:04"]
[BlackClock "0:00:07"]

1. e4 {[%clk 0:03:00]}  e5 {[%clk 0:02:57]} 2. Nf3 {[%clk 0:03:00]}  Nc6 {[%clk 0:02:56]} 3. Bb5 {[%clk 0:02:59]}  a6 {[%clk 0:02:54]} 4. Ba4 {[%clk 0:02:59]}  Nf6 {[%clk 0:02:52]} 5. O-O {[%clk 0:02:59]}  Be7 {[%clk 0:02:49]} 6. Re1 {[%clk 0:02:58]}  b5 {[%clk 0:02:49]} 7. Bb3 {[%clk 0:02:57]}  d6 {[%clk 0:02:50]} 8. c3 {[%clk 0:02:57]}  O-O {[%clk 0:02:48]} 9. h3 {[%clk 0:02:57]}  Na5 {[%clk 0:02:47]} 10. Bc2 {[%clk 0:02:56]}  c5 {[%clk 0:02:48]} 11. d4 {[%clk 0:02:56]}  Qc7 {[%clk 0:02:48]} 12. d5 {[%clk 0:02:55]}  Ne8 {[%clk 0:02:45]} 13. Nbd2 {[%clk 0:02:55]}  Bd7 {[%clk 0:02:38]} 14. Nf1 {[%clk 0:02:53]}  c4 {[%clk 0:02:33]} 15. Ng3 {[%clk 0:02:53]}  g6 {[%clk 0:02:31]} 16. Bh6 {[%clk 0:02:23]}  Ng7 {[%clk 0:02:30]} 17. Qd2 {[%clk 0:02:23]}  f6 {[%clk 0:02:27]} 18. Nh2 {[%clk 0:02:16]}  Nb7 {[%clk 0:02:25]} 19. f4 {[%clk 0:02:15]}  exf4 {[%clk 0:02:20]} 20. Bxf4 {[%clk 0:02:14]}  Nc5 {[%clk 0:02:18]} 21. Kh1 {[%clk 0:02:13]}  a5 {[%clk 0:02:04]} 22. a3 {[%clk 0:02:12]}  Rf7 {[%clk 0:01:51]} 23. Nf3 {[%clk 0:02:08]}  Qb7 {[%clk 0:01:30]} 24. Be3 {[%clk 0:02:06]}  Qc7 {[%clk 0:01:25]} 25. Bd4 {[%clk 0:02:04]}  Rb8 {[%clk 0:01:25]} 26. Rf1 {[%clk 0:02:01]}  Be8 {[%clk 0:01:19]} 27. Rae1 {[%clk 0:01:59]}  Nd7 {[%clk 0:01:19]} 28. Ne2 {[%clk 0:01:54]}  Ne5 {[%clk 0:01:18]} 29. Nf4 {[%clk 0:01:50]}  Bd7 {[%clk 0:01:17]} 30. Be3 {[%clk 0:01:42]}  Rbf8 {[%clk 0:01:15]} 31. Nd4 {[%clk 0:01:41]}  Qb8 {[%clk 0:01:11]} 32. Nfe6 {[%clk 0:01:39]}  Rc8 {[%clk 0:01:06]} 33. Bh6 {[%clk 0:01:37]}  Ne8 {[%clk 0:00:59]} 34. Be3 {[%clk 0:01:26]}  b4 {[%clk 0:00:59]} 35. axb4 {[%clk 0:01:23]}  axb4 {[%clk 0:01:00]} 36. Rf2 {[%clk 0:01:18]}  b3 {[%clk 0:00:58]} 37. Bb1 {[%clk 0:01:14]}  Ng7 {[%clk 0:00:52]} 38. Bh6 {[%clk 0:01:12]}  Bxe6 {[%clk 0:00:47]} 39. Nxe6 {[%clk 0:01:03]}  Bf8 {[%clk 0:00:29]} 40. Bxg7 {[%clk 0:00:59]}  Bxg7 {[%clk 0:00:28]} 41. Ref1 {[%clk 0:00:59]}  Re8 {[%clk 0:00:22]} 42. Qf4 {[%clk 0:00:52]}  Qc8 {[%clk 0:00:19]} 43. Qh4 {[%clk 0:00:47]}  Rxe6 {[%clk 0:00:18]} 44. dxe6 {[%clk 0:00:47]}  Qxe6 {[%clk 0:00:19]} 45. Rd2 {[%clk 0:00:47]}  h5 {[%clk 0:00:19]} 46. Rfd1 {[%clk 0:00:45]}  Rd7 {[%clk 0:00:17]} 47. Qf2 {[%clk 0:00:44]}  Kh7 {[%clk 0:00:16]} 48. Rd5 {[%clk 0:00:44]}  Bh6 {[%clk 0:00:16]} 49. Qb6 {[%clk 0:00:42]}  Bf8 {[%clk 0:00:15]} 50. Qb5 {[%clk 0:00:39]}  Be7 {[%clk 0:00:15]} 51. Qb6 {[%clk 0:00:25]}  Kg7 {[%clk 0:00:15]} 52. Qf2 {[%clk 0:00:23]}  g5 {[%clk 0:00:14]} 53. Qd4 {[%clk 0:00:20]}  h4 {[%clk 0:00:14]} 54. Qf2 {[%clk 0:00:19]}  Ng6 {[%clk 0:00:13]} 55. e5 {[%clk 0:00:14]}  Nxe5 {[%clk 0:00:14]} 56. Bf5 {[%clk 0:00:14]}  Qf7 {[%clk 0:00:11]} 57. Bxd7 {[%clk 0:00:10]}  Nxd7 {[%clk 0:00:10]} 58. Rxd6 {[%clk 0:00:10]}  Ne5 {[%clk 0:00:10]} 59. R6d4 {[%clk 0:00:08]}  Qe6 {[%clk 0:00:10]} 60. Qe2 {[%clk 0:00:07]}  Kg6 {[%clk 0:00:11]} 61. Re4 {[%clk 0:00:08]}  Bc5 {[%clk 0:00:10]} 62. Rf1 {[%clk 0:00:07]}  Qd5 {[%clk 0:00:10]} 63. Rd1 {[%clk 0:00:05]}  Nd3 {[%clk 0:00:09]} 64. Re8 {[%clk 0:00:05]}  Nf2+ {[%clk 0:00:08]} 65. Kh2 {[%clk 0:00:05]}  Qxd1 {[%clk 0:00:08]} 66. Rg8+ {[%clk 0:00:04]}  Kf7 {[%clk 0:00:07]} 67. Qe8# {[%clk 0:00:04]} 1-0


[Site "https://www.chess.com"]

[Event "Titled Tuesday Blitz September 27 Early 2022"]
[White "Krishnan, Varun"]
[Black "Sadilek, Peter"]
[WhiteFideId "5054508"]
[BlackFideId "1616439"]
[WhiteElo "2629"]
[BlackElo "2145"]
[Result "0-1"]
[Round "03"]
[TimeControl "180+1"]
[Date "2022.09.27"]
[WhiteClock "0:00:17"]
[BlackClock "0:00:10"]

1. e4 {[%clk 0:03:00]}  e6 {[%clk 0:02:54]} 2. d4 {[%clk 0:02:59]}  d5 {[%clk 0:02:55]} 3. Nd2 {[%clk 0:02:57]}  h6 {[%clk 0:02:53]} 4. Ngf3 {[%clk 0:02:57]}  Nf6 {[%clk 0:02:52]} 5. Bd3 {[%clk 0:02:56]}  c5 {[%clk 0:02:52]} 6. dxc5 {[%clk 0:02:53]}  Bxc5 {[%clk 0:02:50]} 7. O-O {[%clk 0:02:53]}  Nc6 {[%clk 0:02:50]} 8. c3 {[%clk 0:02:52]}  O-O {[%clk 0:02:50]} 9. Re1 {[%clk 0:02:48]}  Qc7 {[%clk 0:02:35]} 10. exd5 {[%clk 0:02:47]}  exd5 {[%clk 0:02:34]} 11. Nb3 {[%clk 0:02:47]}  Bb6 {[%clk 0:02:32]} 12. Nbd4 {[%clk 0:02:43]}  Bg4 {[%clk 0:02:19]} 13. Be3 {[%clk 0:02:33]}  Ne5 {[%clk 0:01:57]} 14. Be2 {[%clk 0:02:27]}  Nc4 {[%clk 0:01:54]} 15. Bxc4 {[%clk 0:02:10]}  dxc4 {[%clk 0:01:43]} 16. h3 {[%clk 0:02:10]}  Bh5 {[%clk 0:01:42]} 17. Nf5 {[%clk 0:02:05]}  Rad8 {[%clk 0:01:35]} 18. Bd4 {[%clk 0:02:05]}  Qf4 {[%clk 0:01:22]} 19. Ne7+ {[%clk 0:01:50]}  Kh8 {[%clk 0:01:16]} 20. g4 {[%clk 0:01:31]}  Nxg4 {[%clk 0:00:55]} 21. hxg4 {[%clk 0:01:31]}  Qxg4+ {[%clk 0:00:53]} 22. Kh2 {[%clk 0:01:29]}  Bc7+ {[%clk 0:00:46]} 23. Ne5 {[%clk 0:00:35]}  Qh4+ {[%clk 0:00:40]} 24. Kg2 {[%clk 0:00:35]}  Qg5+ {[%clk 0:00:22]} 25. Kf1 {[%clk 0:00:18]}  Bxd1 {[%clk 0:00:22]} 26. Raxd1 {[%clk 0:00:19]}  Bxe5 {[%clk 0:00:20]} 27. Rxe5 {[%clk 0:00:16]}  Qxe5 {[%clk 0:00:16]} 28. Bxe5 {[%clk 0:00:16]}  Rxd1+ {[%clk 0:00:16]} 29. Ke2 {[%clk 0:00:16]}  Rd7 {[%clk 0:00:12]} 30. Nf5 {[%clk 0:00:16]}  Re8 {[%clk 0:00:11]} 31. f4 {[%clk 0:00:16]}  f6 {[%clk 0:00:11]} 32. Nxg7 {[%clk 0:00:14]}  Kxg7 {[%clk 0:00:10]} 33. Kf3 {[%clk 0:00:14]}  fxe5 {[%clk 0:00:10]} 34. f5 {[%clk 0:00:15]}  Kf6 {[%clk 0:00:10]} 35. Kg4 {[%clk 0:00:15]}  Rg8+ {[%clk 0:00:10]} 36. Kh5 {[%clk 0:00:16]}  Rg5+ {[%clk 0:00:10]} 37. Kxh6 {[%clk 0:00:17]}  Rd3 {[%clk 0:00:10]} 0-1


[Site "https://www.chess.com"]

[Event "Titled Tuesday Blitz September 27 Early 2022"]
[White "Lahdelma, Henri"]
[Black "Rose, Felix"]
[WhiteFideId "510394"]
[BlackFideId "5105722"]
[WhiteElo "2210"]
[BlackElo "2039"]
[Result "1/2-1/2"]
[Round "03"]
[TimeControl "180+1"]
[Date "2022.09.27"]
[WhiteClock "0:00:57"]
[BlackClock "0:00:13"]

1. d4 {[%clk 0:03:00]}  Nf6 {[%clk 0:02:59]} 2. c4 {[%clk 0:03:01]}  e6 {[%clk 0:02:59]} 3. e3 {[%clk 0:03:01]}  d5 {[%clk 0:02:58]} 4. Nf3 {[%clk 0:03:00]}  Be7 {[%clk 0:02:58]} 5. Nc3 {[%clk 0:03:00]}  O-O {[%clk 0:02:58]} 6. Bd2 {[%clk 0:03:01]}  b6 {[%clk 0:02:59]} 7. a3 {[%clk 0:03:00]}  Bb7 {[%clk 0:02:59]} 8. b4 {[%clk 0:03:00]}  a5 {[%clk 0:02:49]} 9. c5 {[%clk 0:03:00]}  c6 {[%clk 0:02:46]} 10. Bd3 {[%clk 0:02:58]}  Nbd7 {[%clk 0:02:46]} 11. O-O {[%clk 0:02:57]}  h6 {[%clk 0:02:43]} 12. Re1 {[%clk 0:02:39]}  Qc8 {[%clk 0:02:36]} 13. h3 {[%clk 0:02:38]}  Re8 {[%clk 0:02:36]} 14. Qc2 {[%clk 0:02:37]}  Bf8 {[%clk 0:02:35]} 15. Rac1 {[%clk 0:02:33]}  axb4 {[%clk 0:02:13]} 16. axb4 {[%clk 0:02:34]}  Ba6 {[%clk 0:02:11]} 17. b5 {[%clk 0:02:31]}  cxb5 {[%clk 0:02:11]} 18. Nxb5 {[%clk 0:02:32]}  bxc5 {[%clk 0:02:07]} 19. dxc5 {[%clk 0:02:25]}  Qxc5 {[%clk 0:01:51]} 20. Qb1 {[%clk 0:02:18]}  Qb6 {[%clk 0:01:34]} 21. Nc7 {[%clk 0:02:18]}  Bxd3 {[%clk 0:01:29]} 22. Qxd3 {[%clk 0:02:17]}  Nc5 {[%clk 0:01:28]} 23. Rxc5 {[%clk 0:02:05]}  Bxc5 {[%clk 0:01:20]} 24. Nxe8 {[%clk 0:02:04]}  Rxe8 {[%clk 0:01:19]} 25. Ne5 {[%clk 0:02:03]}  Ne4 {[%clk 0:01:15]} 26. Rb1 {[%clk 0:01:32]}  Qd6 {[%clk 0:00:57]} 27. Nf3 {[%clk 0:01:32]}  Nxd2 {[%clk 0:00:50]} 28. Qxd2 {[%clk 0:01:33]}  Qa6 {[%clk 0:00:43]} 29. Qc3 {[%clk 0:01:31]}  Be7 {[%clk 0:00:36]} 30. Ra1 {[%clk 0:01:31]}  Qc8 {[%clk 0:00:35]} 31. Qb3 {[%clk 0:01:30]}  Bf6 {[%clk 0:00:34]} 32. Ra7 {[%clk 0:01:30]}  Qc1+ {[%clk 0:00:25]} 33. Kh2 {[%clk 0:01:30]}  Rc8 {[%clk 0:00:25]} 34. Qb7 {[%clk 0:01:29]}  Rf8 {[%clk 0:00:22]} 35. Qd7 {[%clk 0:01:28]}  Qc2 {[%clk 0:00:16]} 36. Kg1 {[%clk 0:01:23]}  Qb1+ {[%clk 0:00:13]} 37. Kh2 {[%clk 0:01:24]}  Qc2 {[%clk 0:00:13]} 38. Kg3 {[%clk 0:00:58]}  Qg6+ {[%clk 0:00:12]} 39. Kh2 {[%clk 0:00:57]}  Qc2 {[%clk 0:00:13]} 1/2-1/2


[Site "https://www.chess.com"]

[Event "Titled Tuesday Blitz September 27 Early 2022"]
[White "Le, Tuan Minh"]
[Black "Gilmanov, Mansur"]
[WhiteFideId "12401153"]
[BlackFideId "4166868"]
[WhiteElo "2530"]
[BlackElo "2377"]
[Result "1-0"]
[Round "03"]
[TimeControl "180+1"]
[Date "2022.09.27"]
[WhiteClock "0:00:55"]
[BlackClock "0:00:02"]

1. d4 {[%clk 0:03:00]}  f5 {[%clk 0:02:55]} 2. Nf3 {[%clk 0:03:01]}  e6 {[%clk 0:02:56]} 3. g3 {[%clk 0:03:00]}  c6 {[%clk 0:02:56]} 4. Bg2 {[%clk 0:02:59]}  d5 {[%clk 0:02:56]} 5. O-O {[%clk 0:03:00]}  Nf6 {[%clk 0:02:57]} 6. c4 {[%clk 0:03:00]}  Bd6 {[%clk 0:02:55]} 7. b3 {[%clk 0:02:57]}  O-O {[%clk 0:02:53]} 8. Ba3 {[%clk 0:02:56]}  b6 {[%clk 0:02:53]} 9. Bxd6 {[%clk 0:02:50]}  Qxd6 {[%clk 0:02:54]} 10. Nbd2 {[%clk 0:02:50]}  a5 {[%clk 0:02:54]} 11. Qc2 {[%clk 0:02:49]}  Ba6 {[%clk 0:02:53]} 12. Rfd1 {[%clk 0:02:48]}  Nbd7 {[%clk 0:02:52]} 13. Rac1 {[%clk 0:02:47]}  Ne4 {[%clk 0:02:49]} 14. e3 {[%clk 0:02:35]}  Kh8 {[%clk 0:02:29]} 15. Bf1 {[%clk 0:02:34]}  Bb7 {[%clk 0:02:21]} 16. Ne1 {[%clk 0:02:31]}  c5 {[%clk 0:02:19]} 17. dxc5 {[%clk 0:02:24]}  Ndxc5 {[%clk 0:02:16]} 18. Bg2 {[%clk 0:02:07]}  Rac8 {[%clk 0:02:10]} 19. Nxe4 {[%clk 0:01:56]}  fxe4 {[%clk 0:01:51]} 20. Bxe4 {[%clk 0:01:54]}  Nxe4 {[%clk 0:01:30]} 21. Qxe4 {[%clk 0:01:53]}  Qc7 {[%clk 0:01:05]} 22. Qd3 {[%clk 0:01:34]}  dxc4 {[%clk 0:01:02]} 23. Rxc4 {[%clk 0:01:32]}  Qf7 {[%clk 0:00:27]} 24. Rf4 {[%clk 0:01:31]}  Qh5 {[%clk 0:00:28]} 25. Rh4 {[%clk 0:01:24]}  Qf5 {[%clk 0:00:18]} 26. Qxf5 {[%clk 0:01:24]}  exf5 {[%clk 0:00:18]} 27. Rhd4 {[%clk 0:01:23]}  Rc7 {[%clk 0:00:14]} 28. h4 {[%clk 0:01:15]}  h6 {[%clk 0:00:13]} 29. Nd3 {[%clk 0:01:00]}  Rfc8 {[%clk 0:00:05]} 30. Ne5 {[%clk 0:00:57]}  Kh7 {[%clk 0:00:02]} 31. Rc4 {[%clk 0:00:55]} 1-0


[Site "https://www.chess.com"]

[Event "Titled Tuesday Blitz September 27 Early 2022"]
[White "Levitskiy, Andrey"]
[Black "Vagman, Roy"]
[WhiteFideId "14132885"]
[BlackFideId "2828995"]
[WhiteElo "2303"]
[BlackElo "1945"]
[Result "1-0"]
[Round "03"]
[TimeControl "180+1"]
[Date "2022.09.27"]
[WhiteClock "0:00:58"]
[BlackClock "0:00:01"]

1. e4 {[%clk 0:03:00]}  c5 {[%clk 0:02:58]} 2. Nf3 {[%clk 0:03:01]}  d6 {[%clk 0:02:56]} 3. d4 {[%clk 0:03:01]}  cxd4 {[%clk 0:02:44]} 4. Nxd4 {[%clk 0:03:02]}  Nf6 {[%clk 0:02:44]} 5. Nc3 {[%clk 0:03:02]}  Nc6 {[%clk 0:02:45]} 6. Bc4 {[%clk 0:03:01]}  Qb6 {[%clk 0:02:35]} 7. Nb3 {[%clk 0:03:01]}  g6 {[%clk 0:02:31]} 8. Be3 {[%clk 0:02:57]}  Qc7 {[%clk 0:02:31]} 9. Be2 {[%clk 0:02:55]}  Bg7 {[%clk 0:02:30]} 10. O-O {[%clk 0:02:55]}  O-O {[%clk 0:02:26]} 11. f4 {[%clk 0:02:56]}  a6 {[%clk 0:02:23]} 12. Kh1 {[%clk 0:02:52]}  b5 {[%clk 0:02:19]} 13. a3 {[%clk 0:02:51]}  Bb7 {[%clk 0:02:18]} 14. Qe1 {[%clk 0:02:51]}  e6 {[%clk 0:02:09]} 15. Rd1 {[%clk 0:02:50]}  Rad8 {[%clk 0:02:08]} 16. Qf2 {[%clk 0:02:36]}  Qc8 {[%clk 0:01:52]} 17. Bf3 {[%clk 0:02:25]}  Rfe8 {[%clk 0:01:40]} 18. g4 {[%clk 0:02:22]}  e5 {[%clk 0:01:39]} 19. f5 {[%clk 0:02:20]}  gxf5 {[%clk 0:01:24]} 20. gxf5 {[%clk 0:02:16]}  Kh8 {[%clk 0:01:23]} 21. Rg1 {[%clk 0:02:14]}  Rg8 {[%clk 0:01:23]} 22. Qh4 {[%clk 0:02:09]}  Ne7 {[%clk 0:01:17]} 23. Rxg7 {[%clk 0:02:04]}  Rxg7 {[%clk 0:01:11]} 24. Qxf6 {[%clk 0:02:01]}  Nxf5 {[%clk 0:01:09]} 25. Rg1 {[%clk 0:01:40]}  Rg8 {[%clk 0:01:02]} 26. Bg4 {[%clk 0:01:34]}  Qe6 {[%clk 0:00:33]} 27. Bg5 {[%clk 0:01:20]}  h6 {[%clk 0:00:21]} 28. Bxf5 {[%clk 0:01:14]}  Qxf6 {[%clk 0:00:03]} 29. Bxf6 {[%clk 0:01:14]}  Bc6 {[%clk 0:00:02]} 30. Nd5 {[%clk 0:01:12]}  Bxd5 {[%clk 0:00:03]} 31. exd5 {[%clk 0:01:12]}  e4 {[%clk 0:00:03]} 32. Bxe4 {[%clk 0:01:04]}  b4 {[%clk 0:00:02]} 33. axb4 {[%clk 0:01:04]}  a5 {[%clk 0:00:02]} 34. Nd4 {[%clk 0:01:04]}  axb4 {[%clk 0:00:02]} 35. Nf5 {[%clk 0:01:05]}  b3 {[%clk 0:00:03]} 36. Nxg7 {[%clk 0:01:03]}  bxc2 {[%clk 0:00:01]} 37. Ne8+ {[%clk 0:01:01]}  Rg7 {[%clk 0:00:01]} 38. Bxg7+ {[%clk 0:00:57]}  Kg8 {[%clk 0:00:01]} 39. Nf6# {[%clk 0:00:58]} 1-0


[Site "https://www.chess.com"]

[Event "Titled Tuesday Blitz September 27 Early 2022"]
[White "Lopez Martinez, Josep Manuel"]
[Black "Howell, David W L"]
[WhiteFideId "2212943"]
[BlackFideId "410608"]
[WhiteElo "2471"]
[BlackElo "2559"]
[Result "0-1"]
[Round "03"]
[TimeControl "180+1"]
[Date "2022.09.27"]
[WhiteClock "0:00:10"]
[BlackClock "0:00:24"]

1. d4 {[%clk 0:02:54]}  g6 {[%clk 0:02:49]} 2. e4 {[%clk 0:02:54]}  Bg7 {[%clk 0:02:50]} 3. Nc3 {[%clk 0:02:53]}  c6 {[%clk 0:02:50]} 4. Nf3 {[%clk 0:02:47]}  d5 {[%clk 0:02:50]} 5. h3 {[%clk 0:02:47]}  dxe4 {[%clk 0:02:49]} 6. Nxe4 {[%clk 0:02:47]}  Nf6 {[%clk 0:02:50]} 7. Nxf6+ {[%clk 0:02:46]}  exf6 {[%clk 0:02:51]} 8. Be3 {[%clk 0:02:40]}  O-O {[%clk 0:02:52]} 9. Qd2 {[%clk 0:02:40]}  Be6 {[%clk 0:02:38]} 10. O-O-O {[%clk 0:02:39]}  b5 {[%clk 0:02:32]} 11. Kb1 {[%clk 0:02:37]}  a5 {[%clk 0:02:30]} 12. Rc1 {[%clk 0:02:22]}  Na6 {[%clk 0:02:08]} 13. c4 {[%clk 0:01:58]}  bxc4 {[%clk 0:02:04]} 14. Bxc4 {[%clk 0:01:58]}  Re8 {[%clk 0:01:54]} 15. Ka1 {[%clk 0:01:48]}  Nb4 {[%clk 0:01:49]} 16. a3 {[%clk 0:01:44]}  Nd5 {[%clk 0:01:41]} 17. Bh6 {[%clk 0:01:41]}  Rb8 {[%clk 0:01:26]} 18. Bxg7 {[%clk 0:01:39]}  Kxg7 {[%clk 0:01:27]} 19. Ba2 {[%clk 0:01:38]}  Qb6 {[%clk 0:01:17]} 20. Rc5 {[%clk 0:01:36]}  Nf4 {[%clk 0:01:15]} 21. Bxe6 {[%clk 0:00:35]}  Rxe6 {[%clk 0:01:16]} 22. Re1 {[%clk 0:00:30]}  Rxe1+ {[%clk 0:00:36]} 23. Nxe1 {[%clk 0:00:29]}  Qb3 {[%clk 0:00:37]} 24. Rc3 {[%clk 0:00:26]}  Qb6 {[%clk 0:00:28]} 25. g3 {[%clk 0:00:23]}  Ne6 {[%clk 0:00:25]} 26. Nf3 {[%clk 0:00:21]}  Rd8 {[%clk 0:00:25]} 27. Rd3 {[%clk 0:00:19]}  Qb5 {[%clk 0:00:26]} 28. Qc3 {[%clk 0:00:15]}  Qd5 {[%clk 0:00:24]} 29. Kb1 {[%clk 0:00:12]}  c5 {[%clk 0:00:24]} 30. Qxa5 {[%clk 0:00:10]}  Qe4 {[%clk 0:00:24]} 0-1


[Site "https://www.chess.com"]

[Event "Titled Tuesday Blitz September 27 Early 2022"]
[White "Mahdavi, Reza"]
[Black "Omelja, Artem"]
[WhiteFideId "12595926"]
[BlackFideId "14119846"]
[WhiteElo "2240"]
[BlackElo "2382"]
[Result "1-0"]
[Round "03"]
[TimeControl "180+1"]
[Date "2022.09.27"]
[WhiteClock "0:00:33"]
[BlackClock "0:00:05"]

1. e4 {[%clk 0:03:00]}  c5 {[%clk 0:02:59]} 2. Nf3 {[%clk 0:03:01]}  e6 {[%clk 0:02:54]} 3. c3 {[%clk 0:03:00]}  d5 {[%clk 0:02:48]} 4. exd5 {[%clk 0:03:00]}  Qxd5 {[%clk 0:02:45]} 5. d4 {[%clk 0:03:01]}  Nc6 {[%clk 0:02:40]} 6. Na3 {[%clk 0:03:00]}  cxd4 {[%clk 0:02:36]} 7. Nb5 {[%clk 0:02:59]}  Qd8 {[%clk 0:02:36]} 8. Nbxd4 {[%clk 0:02:57]}  Nxd4 {[%clk 0:02:34]} 9. Nxd4 {[%clk 0:02:58]}  Nf6 {[%clk 0:02:35]} 10. Bd3 {[%clk 0:02:57]}  Be7 {[%clk 0:02:28]} 11. Bf4 {[%clk 0:02:52]}  O-O {[%clk 0:02:24]} 12. O-O {[%clk 0:02:49]}  Nd5 {[%clk 0:02:12]} 13. Bg3 {[%clk 0:02:48]}  Bf6 {[%clk 0:02:03]} 14. Be4 {[%clk 0:02:43]}  Qb6 {[%clk 0:01:49]} 15. Qd2 {[%clk 0:02:30]}  Bd7 {[%clk 0:01:43]} 16. Rad1 {[%clk 0:02:26]}  Rfd8 {[%clk 0:01:30]} 17. Nb3 {[%clk 0:02:14]}  Bc6 {[%clk 0:01:26]} 18. Qc2 {[%clk 0:02:14]}  g6 {[%clk 0:01:19]} 19. Rfe1 {[%clk 0:02:10]}  Rac8 {[%clk 0:01:18]} 20. h3 {[%clk 0:02:08]}  a5 {[%clk 0:01:04]} 21. Nd4 {[%clk 0:01:58]}  Nb4 {[%clk 0:00:22]} 22. cxb4 {[%clk 0:01:57]}  Bxd4 {[%clk 0:00:22]} 23. bxa5 {[%clk 0:01:57]}  Qxa5 {[%clk 0:00:22]} 24. Bxc6 {[%clk 0:01:57]}  Rxc6 {[%clk 0:00:22]} 25. Qb3 {[%clk 0:01:53]}  Rb6 {[%clk 0:00:17]} 26. Qf3 {[%clk 0:01:23]}  Rxb2 {[%clk 0:00:12]} 27. Kh2 {[%clk 0:01:22]}  Rd5 {[%clk 0:00:08]} 28. Rc1 {[%clk 0:01:18]}  Qxa2 {[%clk 0:00:07]} 29. Re4 {[%clk 0:00:59]}  Bxf2 {[%clk 0:00:06]} 30. Rc8+ {[%clk 0:01:00]}  Kg7 {[%clk 0:00:05]} 31. Qc3+ {[%clk 0:00:48]}  Kh6 {[%clk 0:00:04]} 32. Bf4+ {[%clk 0:00:33]}  Kh5 {[%clk 0:00:05]} 33. g4+ {[%clk 0:00:32]}  Kh4 {[%clk 0:00:05]} 34. Qf6+ {[%clk 0:00:33]}  g5 {[%clk 0:00:05]} 35. Qh6# {[%clk 0:00:33]} 1-0


[Site "https://www.chess.com"]